bitfinex/quotes_SOLUSD_20250418
["timestamp","ask_amount","ask_price","bid_price","bid_amount"]
[1744980956672,0.03,134.82,134.8,26.0]
[1744980956872,0.03,134.82,134.8,32.0844952]
[1744980957175,18.64964886,134.8,134.75,1e-08]
[1744980957487,24.73414406,134.76,134.75,1e-08]
[1744980959898,32.15474364,134.76,134.75,1e-08]
[1744980961072,26.07024844,134.76,134.75,1e-08]
[1744980961804,32.15474364,134.76,134.75,1e-08]
[1744980963604,26.07024844,134.76,134.75,1e-08]
[1744980963790,32.15474364,134.76,134.75,1e-08]
[1744980966602,7.42059958,134.76,134.75,32.08449521]
[1744980968198,7.42059958,134.76,134.75,1e-08]
[1744980968806,18.64964886,134.77,134.75,6.08449521]
[1744980970390,7.42059958,134.76,134.75,6.08449521]
[1744980971295,26.07024844,134.76,134.75,1e-08]
[1744980973703,7.42059958,134.76,134.75,32.08449521]
[1744980975403,25.96885156,134.78,134.75,32.08449521]
[1744980975906,25.96885156,134.78,134.75,6.08449521]
[1744980977999,18.64964886,134.77,134.75,6.08449521]
[1744980979299,7.41949844,134.78,134.77,26.0]
[1744980979501,26.06859685,134.79,134.78,26.0]
[1744980980317,26.06859685,134.79,134.77,6.0844952]
[1744980981494,7.41839762,134.8,134.78,32.0844952]
[1744980983014,7.41839762,134.8,134.78,26.0]
[1744980983587,7.41839762,134.8,134.78,32.0844952]
[1744980983908,25.96439168,134.8,134.77,6.0844952]
[1744980984799,25.96439168,134.8,134.76,26.0]
[1744980985110,25.96439168,134.8,134.77,6.0844952]
[1744980986708,18.64964886,134.79,134.76,6.0844952]
[1744980987916,7.41949844,134.78,134.76,6.0844952]
[1744980988222,7.41949844,134.78,134.77,6.0844952]
[1744980990017,18.64964886,134.78,134.77,6.0844952]
[1744980990601,18.64964886,134.78,134.77,32.0844952]
[1744980992394,26.0691473,134.78,134.77,32.0844952]
[1744980992925,7.41839762,134.8,134.77,6.0844952]
[1744980993102,18.64964886,134.79,134.77,6.0844952]
[1744980994728,7.41949844,134.78,134.77,6.0844952]
[1744980995400,7.41949844,134.78,134.76,32.0844952]
[1744980996404,26.06825154,134.8,134.79,26.0]
[1744980997311,26.06825154,134.8,134.77,32.0844952]
[1744980998517,26.06825154,134.8,134.77,6.0844952]
[1744980998822,26.06825154,134.8,134.76,6.0844952]
[1744981000935,26.06825154,134.8,134.77,6.0844952]
[1744981001241,26.06825154,134.8,134.75,26.00000001]
[1744981001723,26.06825154,134.8,134.76,6.0844952]
[1744981003422,26.06825154,134.8,134.75,26.00000001]
[1744981003635,26.06825154,134.8,134.76,6.0844952]
[1744981004232,26.06825154,134.8,134.75,26.00000001]
[1744981004407,26.06825154,134.8,134.75,1e-08]
[1744981004607,26.06825154,134.8,134.76,6.0844952]
[1744981006226,6.0844952,134.78,134.75,1e-08]
[1744981006529,18.64964886,134.76,134.75,1e-08]
[1744981007726,18.64964886,134.76,134.75,6.08449521]
[1744981008529,7.42059958,134.76,134.75,6.08449521]
[1744981009413,7.42059958,134.76,134.75,1e-08]
[1744981009613,7.42059958,134.76,134.75,6.08449521]
[1744981010231,18.64964886,134.76,134.75,6.08449521]
[1744981010407,7.42004897,134.77,134.75,6.08449521]
[1744981010608,18.64964886,134.76,134.75,6.08449521]
[1744981010926,7.42004897,134.77,134.75,6.08449521]
[1744981011130,18.64964886,134.8,134.76,6.0844952]
[1744981011808,26.06804648,134.8,134.76,6.0844952]
[1744981012504,50.69853574,134.8,134.75,6.08449521]
[1744981013423,50.69853574,134.8,134.75,1e-08]
[1744981013628,18.64964886,134.78,134.75,1e-08]
[1744981014513,7.42004897,134.77,134.75,1e-08]
[1744981015212,13.50454417,134.77,134.75,1e-08]
[1744981015622,7.42004897,134.77,134.75,26.00000001]
[1744981016426,7.42004897,134.77,134.75,1e-08]
[1744981019808,7.42004897,134.77,134.76,6.0844952]
[1744981023136,18.64964886,134.78,134.77,26.0]
[1744981024834,18.64964886,134.78,134.77,32.0844952]
[1744981025428,26.0691473,134.78,134.77,32.0844952]
[1744981025632,7.41949844,134.78,134.77,32.0844952]
[1744981026320,18.64964886,134.8,134.77,32.0844952]
[1744981026636,7.41839762,134.8,134.77,32.0844952]
[1744981027335,18.64964886,134.8,134.77,32.0844952]
[1744981027635,18.64964886,134.8,134.78,6.0844952]
[1744981027853,18.64964886,134.8,134.77,26.0]
[1744981028142,18.64964886,134.8,134.77,32.0844952]
[1744981029343,7.41894799,134.79,134.78,6.0844952]
[1744981030136,7.41812814,134.81,134.8,26.0]
[1744981030347,7.41812814,134.81,134.79,32.0844952]
[1744981031319,7.44729713,134.82,134.81,26.0]
[1744981032535,7.44729713,134.82,134.81,6.0844952]
[1744981032536,0.03,134.82,134.81,6.0844952]
[1744981032742,0.03,134.82,134.81,32.0844952]
[1744981034940,0.03,134.82,134.81,26.0]
[1744981035138,0.03,134.82,134.81,32.0844952]
[1744981041855,0.03,134.82,134.75,39.30014238]
[1744981041856,25.0484672,134.82,134.75,14.82000001]
[1744981042054,18.64964886,134.8,134.77,6.0844952]
[1744981042355,18.64964886,134.8,134.76,6.0844952]
[1744981042555,18.64964886,134.8,134.79,26.0]
[1744981042865,6.0844952,134.81,134.77,6.0844952]
[1744981042866,18.64964886,134.81,134.77,6.0844952]
[1744981043154,26.06804648,134.8,134.79,26.0]
[1744981043454,26.06804648,134.8,134.77,6.0844952]
[1744981044256,26.06804648,134.8,134.79,26.0]
[1744981044555,18.64964886,134.79,134.75,1e-08]
[1744981044755,6.0844952,134.78,134.75,1e-08]
[1744981044958,24.73414406,134.79,134.75,6.08449521]
[1744981045559,26.0691473,134.78,134.77,26.0]
[1744981046458,26.0691473,134.78,134.77,32.0844952]
[1744981046966,18.64964886,134.78,134.77,32.0844952]
[1744981047142,7.4191764,134.79,134.77,32.0844952]
[1744981047342,7.4191764,134.79,134.78,6.0844952]
[1744981047843,18.64964886,134.79,134.78,6.0844952]
[1744981049465,7.41784734,134.81,134.8,26.0]
[1744981049667,26.0674962,134.81,134.8,26.0]
[1744981051361,26.0674962,134.81,134.79,6.0844952]
[1744981051664,26.0674962,134.81,134.8,26.0]
[1744981052969,18.64964886,134.81,134.8,32.0844952]
[1744981054361,7.44746015,134.82,134.8,32.0844952]
[1744981054565,18.64964886,134.81,134.8,32.0844952]
[1744981055443,18.64964886,134.81,134.8,26.0]
[1744981056665,26.0674962,134.81,134.8,26.0]
[1744981059361,26.0674962,134.81,134.76,14.82]
[1744981059662,18.64964886,134.8,134.76,20.9044952]
[1744981059961,18.64964886,134.8,134.76,6.0844952]
[1744981060257,18.64964886,134.8,134.79,26.0]
[1744981061771,18.64964886,134.78,134.76,26.0]
[1744981061972,18.64964886,134.78,134.76,32.0844952]
[1744981062874,7.42004897,134.77,134.76,32.0844952]
[1744981064172,44.61404054,134.8,134.76,32.0844952]
[1744981067958,44.61404054,134.8,134.77,6.0844952]
[1744981077081,50.69853574,134.8,134.75,26.00000001]
[1744981077254,18.64964886,134.78,134.75,6.08449521]
[1744981077451,18.64964886,134.78,134.75,32.08449521]
[1744981078584,18.64964886,134.76,134.75,32.08449521]
[1744981079681,7.42059958,134.76,134.75,32.08449521]
[1744981079980,7.42059958,134.76,134.75,26.00000001]
[1744981080181,7.42059958,134.76,134.75,1e-08]
[1744981088784,26.07024844,134.76,134.75,1e-08]
[1744981091080,18.64964886,134.75,134.73,0.063]
[1744981091285,18.64964886,134.75,134.74,6.0844952]
[1744981092489,26.07079913,134.75,134.74,6.0844952]
[1744981094103,26.07079913,134.75,134.73,6.1474952]
[1744981096490,18.64964886,134.79,134.74,6.0844952]
[1744981096802,18.64964886,134.79,134.75,6.0844952]
[1744981098381,6.0844952,134.79,134.74,32.0844952]
[1744981098586,18.64964886,134.77,134.74,32.0844952]
[1744981100506,7.42059958,134.76,134.74,32.0844952]
[1744981101606,18.64964886,134.75,134.74,26.0]
[1744981102897,7.42115027,134.75,134.74,26.0]
[1744981104108,26.06969783,134.77,134.74,26.0]
[1744981104609,26.06969783,134.77,134.74,32.0844952]
[1744981106315,44.61982026,134.77,134.74,32.0844952]
[1744981109318,44.61982026,134.77,134.74,26.0]
[1744981111301,44.61982026,134.77,134.73,6.1474952]
[1744981113819,0.28432314,134.76,134.73,0.063]
[1744981115806,18.64964886,134.74,134.73,0.063]
[1744981118020,7.42170105,134.74,134.73,0.063]
[1744981118823,7.42170105,134.74,134.73,6.1474952]
[1744981119317,7.42170105,134.74,134.73,0.063]
[1744981120121,7.42115027,134.75,134.73,0.063]
[1744981123932,7.42115027,134.75,134.73,6.1474952]
[1744981124119,26.07134991,134.74,134.73,6.1474952]
[1744981128428,26.07134991,134.74,134.73,0.063]
[1744981146946,26.07134991,134.74,134.73,6.1474952]
[1744981146947,7.42170105,134.74,134.73,6.1474952]
[1744981147539,7.42115027,134.75,134.73,6.1474952]
[1744981147749,7.42115027,134.75,134.73,0.063]
[1744981148859,7.42115027,134.75,134.73,6.1474952]
[1744981151854,7.42115027,134.75,134.73,0.063]
[1744981156449,7.42115027,134.75,134.73,6.1474952]
[1744981160162,7.42115027,134.75,134.73,0.063]
[1744981165066,7.42170105,134.74,134.73,0.063]
[1744981167475,7.42170105,134.74,134.73,6.1474952]
[1744981169178,7.42115027,134.75,134.73,6.1474952]
[1744981169348,7.42115027,134.75,134.73,0.063]
[1744981204901,13.50564547,134.75,134.73,0.063]
[1744981205094,7.42115027,134.75,134.73,0.063]
[1744981205413,18.64964886,134.74,134.73,1e-08]
[1744981205801,7.42170105,134.74,134.73,1e-08]
[1744981209994,13.50564547,134.75,134.73,1e-08]
[1744981210717,7.42115027,134.75,134.73,1e-08]
[1744981210903,13.50564547,134.75,134.73,1e-08]
[1744981214310,7.42115027,134.75,134.73,1e-08]
[1744981219115,13.50564547,134.75,134.73,1e-08]
[1744981219419,7.42115027,134.75,134.73,1e-08]
[1744981220017,7.42115027,134.75,134.74,32.0844952]
[1744981220393,7.42115027,134.75,134.74,26.0]
[1744981221697,26.07024844,134.76,134.74,26.0]
[1744981223415,44.6217474,134.76,134.73,6.08449521]
[1744981224219,44.6217474,134.76,134.73,1e-08]
[1744981224424,44.6217474,134.76,134.73,6.08449521]
[1744981229923,44.6217474,134.76,134.73,1e-08]
[1744981230217,44.6217474,134.76,134.73,6.08449521]
[1744981234533,50.7062426,134.76,134.73,1e-08]
[1744981235139,44.6217474,134.76,134.73,1e-08]
[1744981236530,6.36881834,134.75,134.73,1e-08]
[1744981236920,0.28432314,134.75,134.73,1e-08]
[1744981238240,7.42170105,134.74,134.73,1e-08]
[1744981244744,7.42170105,134.74,134.69,0.063]
[1744981244745,0.42648471,134.72,134.69,0.063]
[1744981245048,24.87630563,134.7,134.69,0.063]
[1744981245222,18.933972,134.69,134.68,0.063]
[1744981245410,0.28432314,134.69,134.68,0.063]
[1744981245614,0.42648471,134.69,134.68,1e-08]
[1744981246553,7.85094086,134.69,134.68,1e-08]
[1744981247039,13.93543606,134.69,134.68,1e-08]
[1744981247427,13.93543606,134.69,134.67,1e-08]
[1744981249846,24.87630563,134.68,134.67,1e-08]
[1744981250026,0.14216157,134.66,134.63,6.0844952]
[1744981250213,7.42666171,134.65,134.62,0.063]
[1744981250531,26.07631057,134.65,134.64,6.0844952]
[1744981254635,26.07631057,134.65,134.62,0.063]
[1744981254844,26.07631057,134.65,134.64,6.0844952]
[1744981255037,18.64964886,134.64,134.62,0.063]
[1744981255244,18.64964886,134.64,134.63,6.0844952]
[1744981255433,18.64964886,134.64,134.62,0.063]
[1744981255944,18.933972,134.64,134.63,6.0844952]
[1744981256142,7.42666171,134.65,134.63,6.0844952]
[1744981256441,7.42666171,134.65,134.64,32.0844952]
[1744981257830,18.56127823,134.69,134.64,32.0844952]
[1744981258141,18.64964886,134.68,134.64,26.0]
[1744981258740,26.07465628,134.68,134.62,26.063]
[1744981259132,26.07465628,134.68,134.67,6.0844952]
[1744981260347,7.42390497,134.7,134.67,6.0844952]
[1744981260569,7.42390497,134.7,134.69,6.0844952]
[1744981261626,25.98190418,134.71,134.69,6.0844952]
[1744981261830,25.98190418,134.71,134.7,6.0844952]
[1744981263249,7.42335387,134.71,134.7,6.0844952]
[1744981263747,18.55590859,134.73,134.7,6.0844952]
[1744981263946,18.55590859,134.73,134.72,6.0844952]
[1744981264457,7.42170105,134.74,134.72,6.0844952]
[1744981264636,7.42170105,134.74,134.73,6.0844952]
[1744981267647,7.42170105,134.74,134.71,26.0]
[1744981267837,18.64964886,134.75,134.72,6.0844952]
[1744981268037,24.73414406,134.75,134.7,6.0844952]
[1744981268241,18.64964886,134.73,134.69,14.7]
[1744981268443,18.933972,134.75,134.71,6.0844952]
[1744981268736,18.933972,134.75,134.69,14.7]
[1744981268929,18.933972,134.75,134.71,6.0844952]
[1744981269435,7.45059958,134.76,134.74,6.0844952]
[1744981269756,7.45059958,134.76,134.7,20.0]
[1744981269757,7.45059958,134.76,134.75,6.0844952]
[1744981269956,0.03,134.76,134.75,6.0844952]
[1744981270452,0.03,134.76,134.74,26.0]
[1744981270756,0.03,134.76,134.74,6.0844952]
[1744981272336,0.03,134.76,134.73,32.0844952]
[1744981273559,0.03,134.76,134.74,6.0844952]
[1744981274345,7.45059958,134.76,134.74,6.0844952]
[1744981275759,7.45059958,134.76,134.74,26.0]
[1744981276853,24.73414406,134.75,134.71,14.7]
[1744981277245,6.0844952,134.74,134.71,26.0]
[1744981277548,6.0844952,134.73,134.68,6.0844952]
[1744981277750,18.64964886,134.75,134.68,6.0844952]
[1744981277751,6.0844952,134.72,134.68,6.0844952]
[1744981277963,6.0844952,134.72,134.7,26.0]
[1744981278556,18.64964886,134.72,134.7,26.0]
[1744981279261,7.42335387,134.71,134.7,26.0]
[1744981281358,18.64964886,134.72,134.7,26.0]
[1744981283077,7.42335387,134.71,134.7,26.0]
[1744981286651,32.15749793,134.71,134.7,26.0]
[1744981286834,18.64964886,134.7,134.65,6.0844952]
[1744981287040,6.0844952,134.69,134.65,6.0844952]
[1744981287239,24.73414406,134.69,134.68,26.0]
[1744981287440,18.64964886,134.69,134.68,26.0]
[1744981287860,18.64964886,134.69,134.66,32.0844952]
[1744981288062,18.64964886,134.7,134.68,6.0844952]
[1744981288541,7.42445615,134.69,134.68,6.0844952]
[1744981290063,7.42418573,134.7,134.68,6.0844952]
[1744981290267,7.42418573,134.7,134.69,6.0844952]
[1744981291066,7.42335387,134.71,134.69,6.0844952]
[1744981294284,7.42225191,134.73,134.7,6.0844952]
[1744981294452,7.42225191,134.73,134.71,6.0844952]
[1744981295347,18.64964886,134.74,134.72,6.0844952]
[1744981295547,7.42115027,134.75,134.72,6.0844952]
[1744981295748,0.03,134.76,134.73,32.0844952]
[1744981295970,0.03,134.8,134.79,20.14216157]
[1744981296270,0.03,134.8,134.79,63.04218065]
[1744981297050,0.03,134.8,134.79,68.23544424]
[1744981298967,0.03,134.8,134.79,48.09328267]
[1744981299174,0.03,134.8,134.79,51.48460545]
[1744981299478,0.03,134.8,134.79,24.17581798]
[1744981299670,0.03,134.8,134.79,50.17581798]
[1744981299882,0.03,134.8,134.79,40.7]
[1744981300052,0.03,134.8,134.79,50.17581798]
[1744981301574,0.03,134.8,134.79,40.7]
[1744981301873,0.03,134.8,134.79,50.17581798]
[1744981303664,0.03,134.8,134.79,26.0]
[1744981305348,35.57386446,134.8,134.79,26.0]
[1744981305559,35.57386446,134.8,134.77,14.7]
[1744981305768,9.47581798,134.78,134.77,26.0]
[1744981306276,28.12546684,134.79,134.77,26.0]
[1744981306772,28.12546684,134.79,134.78,26.0]
[1744981306957,28.12546684,134.79,134.73,246.1]
[1744981307165,28.12546684,134.78,134.77,26.0]
[1744981307476,35.54496528,134.78,134.77,26.0]
[1744981308056,26.06881478,134.79,134.77,26.0]
[1744981308466,7.41916592,134.79,134.77,26.0]
[1744981310268,16.8949839,134.79,134.77,26.0]
[1744981310990,9.47581798,134.78,134.77,26.0]
[1744981311482,9.47581798,134.78,134.73,255.57581798]
[1744981311483,28.12546684,134.78,134.73,246.1]
[1744981311682,18.64964886,134.78,134.74,26.0]
[1744981311885,9.47581798,134.76,134.75,26.0]
[1744981312085,9.47581798,134.77,134.75,26.0]
[1744981312264,7.42059958,134.76,134.75,26.0]
[1744981312464,7.4202572,134.77,134.75,26.0]
[1744981313185,7.41939916,134.79,134.75,35.47581798]
[1744981313481,7.41939916,134.79,134.76,26.0]
[1744981317480,16.89521714,134.79,134.76,26.0]
[1744981317681,9.47581798,134.78,134.76,26.0]
[1744981319284,7.42004897,134.77,134.73,275.57581798]
[1744981319583,7.42004897,134.77,134.73,301.57581798]
[1744981319769,7.42004897,134.77,134.73,307.51361385]
[1744981320891,7.41949844,134.78,134.73,292.1]
[1744981321094,7.41949844,134.78,134.73,301.57581798]
[1744981323275,6.07059721,134.78,134.73,40.76]
[1744981323593,6.07059721,134.77,134.73,40.76]
[1744981324695,7.42059958,134.76,134.75,26.0]
[1744981327289,7.42059958,134.76,134.73,20.83059721]
[1744981327495,7.42059958,134.76,134.74,26.0]
[1744981329793,26.06969783,134.77,134.74,26.0]
[1744981333500,7.42004897,134.77,134.75,6.07059721]
[1744981333702,7.42004897,134.77,134.74,26.0]
[1744981333901,13.49064618,134.77,134.74,26.0]
[1744981334279,24.72024607,134.76,134.73,14.76]
[1744981335202,13.49174748,134.75,134.72,26.0]
[1744981336101,32.04462317,134.75,134.72,26.0]
[1744981336405,25.97402596,134.75,134.72,26.0]
[1744981337084,25.97402596,134.75,134.72,32.07059721]
[1744981341004,18.64964886,134.74,134.72,26.0]
[1744981342285,7.42225191,134.73,134.72,26.0]
[1744981343806,18.64964886,134.72,134.7,0.063]
[1744981345291,24.72024607,134.72,134.7,0.063]
[1744981345494,24.72024607,134.71,134.7,0.063]
[1744981345797,32.14359994,134.71,134.7,0.063]
[1744981346196,26.07300273,134.71,134.7,0.063]
[1744981346515,32.14359994,134.71,134.7,0.063]
[1744981347317,7.42335387,134.71,134.7,6.13359721]
[1744981347493,7.42335387,134.71,134.7,0.063]
[1744981347691,7.42335387,134.71,134.7,6.13359721]
[1744981348725,26.07268772,134.72,134.7,6.13359721]
[1744981349019,6.07059721,134.75,134.71,6.07059721]
[1744981349020,18.64964886,134.75,134.71,6.07059721]
[1744981349220,26.07079913,134.75,134.73,6.07059721]
[1744981349809,26.07079913,134.75,134.72,6.07059721]
[1744981350325,26.07079913,134.75,134.7,0.063]
[1744981350326,50.69427203,134.75,134.7,0.063]
[1744981350498,50.69427203,134.75,134.7,6.13359721]
[1744981351218,54.11479297,134.75,134.7,9.55411815]
[1744981351418,44.62367482,134.75,134.7,9.55411815]
[1744981351627,54.11479297,134.75,134.7,9.55411815]
[1744981352125,28.14076701,134.72,134.7,0.063]
[1744981353134,26.07300273,134.71,134.7,0.063]
[1744981361022,25.97851074,134.73,134.7,0.063]
[1744981361231,18.64964886,134.72,134.7,0.063]
[1744981364934,26.07300273,134.71,134.7,0.063]
[1744981373340,7.42335387,134.71,134.7,0.063]
[1744981374347,7.42335387,134.71,134.7,6.13957593]
[1744981375234,25.97851074,134.73,134.7,6.13957593]
[1744981376154,25.97851074,134.73,134.7,0.063]
[1744981379153,32.05508667,134.73,134.7,0.063]
[1744981380852,18.64964886,134.72,134.7,0.063]
[1744981381649,7.42335387,134.71,134.7,0.063]
[1744981382752,32.14957866,134.71,134.7,0.063]
[1744981384161,50.99228647,134.71,134.67,0.063]
[1744981384451,18.64964886,134.69,134.67,0.063]
[1744981384960,25.98173854,134.71,134.68,6.07657593]
[1744981386632,25.98173854,134.71,134.67,0.063]
[1744981386833,25.98173854,134.71,134.68,6.07657593]
[1744981387835,25.98173854,134.71,134.67,6.13957593]
[1744981388448,25.98173854,134.71,134.68,6.07657593]
[1744981390054,7.42335387,134.71,134.68,6.07657593]
[1744981390257,7.42335387,134.71,134.69,6.07657593]
[1744981392668,7.42335387,134.71,134.68,6.07657593]
[1744981394963,7.42335387,134.71,134.69,6.07657593]
[1744981397764,18.64964886,134.7,134.67,0.063]
[1744981398856,7.42445615,134.69,134.67,0.063]
[1744981400262,18.64964886,134.68,134.67,0.063]
[1744981401067,26.07465628,134.68,134.67,0.063]
[1744981402460,26.35897942,134.68,134.66,0.063]
[1744981402667,25.01054793,134.67,134.66,1e-08]
[1744981404568,26.35953077,134.67,134.66,1e-08]
[1744981404772,32.57826827,134.67,134.66,1e-08]
[1744981408771,26.50169234,134.67,134.66,1e-08]
[1744981411675,26.07520763,134.67,134.66,1e-08]
[1744981411974,26.07520763,134.67,134.66,6.07657594]
[1744981412552,7.42555877,134.67,134.66,6.07657594]
[1744981412854,26.07465628,134.68,134.66,6.07657594]
[1744981413062,26.07465628,134.68,134.67,6.07657593]
[1744981414056,7.42500742,134.68,134.67,6.07657593]
[1744981415073,7.42390497,134.7,134.67,6.07657593]
[1744981415281,7.42390497,134.7,134.69,6.07657593]
[1744981415282,26.07355383,134.7,134.69,6.07657593]
[1744981415652,7.42390497,134.7,134.69,6.07657593]
[1744981417056,37.20819651,134.71,134.69,6.07657593]
[1744981419373,44.63155038,134.71,134.69,6.07657593]
[1744981422182,44.63155038,134.71,134.68,6.07657593]
[1744981425702,44.63155038,134.71,134.67,6.07657593]
[1744981427789,24.72622479,134.7,134.66,1e-08]
[1744981429693,25.98559654,134.69,134.66,1e-08]
[1744981430882,18.64964886,134.68,134.66,1e-08]
[1744981432096,7.42555877,134.67,134.66,1e-08]
[1744981436092,26.2173692,134.67,134.66,1e-08]
[1744981436406,32.4361067,134.67,134.66,1e-08]
[1744981437368,26.35953077,134.67,134.66,1e-08]
[1744981441802,7.42555877,134.67,134.66,1e-08]
[1744981442006,7.42555877,134.67,134.66,6.07657594]
[1744981442702,7.42555877,134.67,134.66,1e-08]
[1744981442888,7.42555877,134.67,134.66,6.07657594]
[1744981443597,25.98559654,134.69,134.66,6.07657594]
[1744981445707,7.42555877,134.67,134.66,1e-08]
[1744981446409,26.07520763,134.67,134.66,1e-08]
[1744981452210,18.64964886,134.66,134.64,1e-08]
[1744981453311,18.64964886,134.66,134.64,6.07657594]
[1744981454415,7.42666171,134.65,134.64,1e-08]
[1744981455920,26.07575906,134.66,134.64,1e-08]
[1744981463929,19.07613357,134.65,134.64,1e-08]
[1744981464226,25.1527095,134.65,134.64,1e-08]
[1744981465521,32.57937121,134.65,134.64,1e-08]
[1744981467923,32.43720964,134.65,134.64,1e-08]
[1744981468098,32.57937121,134.65,134.64,1e-08]
[1744981469320,26.36063371,134.65,134.64,1e-08]
[1744981469524,7.42639244,134.66,134.64,6.07657594]
[1744981469730,7.42639244,134.66,134.65,6.07657593]
[1744981470405,7.42555877,134.67,134.65,6.07657593]
[1744981472812,7.42555877,134.67,134.64,1e-08]
[1744981473016,7.42555877,134.67,134.64,6.07657594]
[1744981473323,7.42555877,134.67,134.64,1e-08]
[1744981473515,7.42555877,134.67,134.64,6.07657594]
[1744981474937,44.64964886,134.65,134.63,0.063]
[1744981475107,44.64964886,134.6,134.59,0.063]
[1744981475301,18.933972,134.59,134.53,6.07657593]
[1744981475621,18.933972,134.59,134.55,6.13957593]
[1744981475828,25.1527095,134.59,134.55,0.063]
[1744981476027,18.64964886,134.6,134.55,6.13957593]
[1744981476329,24.72622479,134.6,134.55,6.13957593]
[1744981476532,6.07657593,134.58,134.55,0.063]
[1744981477018,32.15730155,134.57,134.55,0.063]
[1744981477219,18.933972,134.56,134.55,0.063]
[1744981477621,0.28432314,134.56,134.55,0.063]
[1744981477826,27.23948119,134.56,134.55,0.063]
[1744981479235,34.6711102,134.56,134.55,0.063]
[1744981479922,53.25018273,134.56,134.52,0.063]
[1744981480231,26.95515805,134.53,134.52,0.063]
[1744981480713,26.95999017,134.53,134.52,0.063]
[1744981481336,34.39327642,134.53,134.52,0.063]
[1744981482131,34.39327642,134.53,134.52,1e-08]
[1744981482132,60.39327642,134.53,134.52,1e-08]
[1744981483814,61.39327642,134.53,134.52,1e-08]
[1744981484236,60.39327642,134.53,134.52,1e-08]
[1744981485018,8.40133775,134.52,134.43,20.0]
[1744981485227,8.31034131,134.45,134.42,26.0]
[1744981485443,8.31034131,134.45,134.41,20.0]
[1744981485648,8.31034131,134.44,134.42,26.0]
[1744981487241,20.43780079,134.45,134.42,26.0]
[1744981487432,20.43780079,134.45,134.42,25.5]
[1744981488237,12.99983305,134.44,134.42,25.5]
[1744981488441,12.99983305,134.43,134.4,14.7]
[1744981488640,12.99983305,134.41,134.37,20.0]
[1744981489217,12.99983305,134.4,134.37,20.0]
[1744981489636,26.0322407,134.45,134.38,13.14199462]
[1744981489839,12.99983305,134.43,134.38,0.14216157]
[1744981490024,7.43770918,134.45,134.4,12.99983305]
[1744981490225,20.43754223,134.45,134.4,0.14216157]
[1744981490420,20.43754223,134.45,134.4,13.14199462]
[1744981490624,12.99983305,134.44,134.4,0.14216157]
[1744981491234,7.43830408,134.44,134.4,6.09443008]
[1744981491424,12.99983305,134.49,134.43,32.99983305]
[1744981491624,12.99983305,134.49,134.44,12.99983305]
[1744981491824,31.58853788,134.5,134.44,12.99983305]
[1744981492133,7.43549706,134.49,134.45,12.99983305]
[1744981492744,20.43533011,134.49,134.44,12.99983305]
[1744981493937,12.99983305,134.48,134.43,20.0]
[1744981494325,7.43549706,134.49,134.43,32.99983305]
[1744981494642,12.99983305,134.48,134.43,32.99983305]
[1744981495756,20.436436,134.47,134.43,20.0]
[1744981496135,18.58414291,134.53,134.46,12.99983305]
[1744981496445,7.43328625,134.53,134.49,12.99983305]
[1744981496649,7.43328625,134.53,134.5,12.99983305]
[1744981496850,7.43328625,134.53,134.51,12.99983305]
[1744981497043,15.88,134.6,134.52,12.99983305]
[1744981497360,12.99983305,134.56,134.51,12.99983305]
[1744981497742,37.14460414,134.61,134.53,12.99983305]
[1744981497952,12.99983305,134.58,134.54,12.99983305]
[1744981498255,12.99983305,134.56,134.52,14.88]
[1744981499060,12.99983305,134.56,134.52,27.87983305]
[1744981499358,12.99983305,134.55,134.51,12.99983305]
[1744981499732,7.43328625,134.53,134.5,14.88]
[1744981499932,7.4299725,134.59,134.52,12.99983305]
[1744981500132,7.4299725,134.59,134.5,20.82791651]
[1744981500133,12.99983305,134.58,134.53,12.99983305]
[1744981500454,20.42980555,134.59,134.55,12.99983305]
[1744981500656,7.4299725,134.59,134.56,12.99983305]
[1744981500960,7.4299725,134.59,134.57,12.99983305]
[1744981501153,7.4299725,134.59,134.55,14.88]
[1744981501154,7.42886858,134.61,134.58,12.99983305]
[1744981501539,20.42870163,134.61,134.56,13.14199462]
[1744981502038,20.42870163,134.61,134.56,33.14199462]
[1744981503563,25.9972571,134.63,134.56,33.14199462]
[1744981503764,12.99983305,134.62,134.57,12.99983305]
[1744981504144,25.9972571,134.63,134.57,12.99983305]
[1744981504459,12.99983305,134.62,134.58,12.99983305]
[1744981505362,25.9972571,134.63,134.58,12.99983305]
[1744981505363,7.42776498,134.63,134.6,12.99983305]
[1744981505661,7.4272133,134.64,134.6,12.99983305]